fUSD/lending_fUSD_20240629
["ID","MTS","AMOUNT","RATE_DAILY","PERIOD"]
[330654942,1719693048135,-6610.94,0.00013698,3]
[330654943,1719693048145,-1502.31,0.00013698,3]
[330654944,1719693048154,-612.57,0.00013698,3]
[330654945,1719693048164,-1743.08,0.00013698,3]
[330654946,1719693048173,-500.0,0.00013698,3]
[330654947,1719693048183,-500.0,0.00013698,3]
[330654948,1719693048192,-931.81,0.00013698,3]
[330654949,1719693048202,-1442.37,0.00013698,3]
[330654950,1719693048212,-1103.77,0.00013698,3]
[330654951,1719693048221,-863.7,0.00013698,3]
[330654952,1719693048230,-3088.27,0.00013698,3]
[330654953,1719693048240,-500.0,0.00013698,3]
[330654954,1719693048249,-500.0,0.00013698,2]
[330654955,1719693048258,-500.0,0.00013698,2]
[330654956,1719693048268,-500.0,0.00013698,2]
[330654957,1719693048277,-652.71,0.00013698,3]
[330654958,1719693048287,-500.0,0.00013698,3]
[330654959,1719693048297,-753.97,0.00013698,3]
[330654960,1719693048306,-2654.84,0.00013698,3]
[330654961,1719693048316,-1263.21,0.00013698,3]
[330654962,1719693048326,-1048.27,0.00013698,3]
[330654963,1719693048335,-500.0,0.00013698,3]
[330654964,1719693048345,-507.08,0.00013698,3]
[330654965,1719693048354,-2828.54,0.00013698,3]
[330654966,1719693048364,-3013.96,0.00013698,3]
[330654967,1719693048374,-601.74,0.00013698,3]
[330654968,1719693048383,-891.52,0.00013698,3]
[330654969,1719693048393,-1949.14,0.00013698,3]
[330654970,1719693048403,-1218.2,0.00013698,3]
[330654971,1719693048412,-500.0,0.00013698,3]
[330654972,1719693048422,-500.0,0.00013698,3]
[330654973,1719693048431,-2048.96,0.00013698,3]
[330654974,1719693048441,-1365.36,0.00013698,3]
[330654975,1719693048450,-151.0,0.00013698,2]
[330654976,1719693048460,-151.0,0.00013698,2]
[330654977,1719693048470,-6471.47,0.00013698,3]
[330654978,1719693048480,-152.324312,0.00013698,2]
[330654979,1719693048490,-500.0,0.00013698,3]
[330654980,1719693048499,-1193.02,0.00013698,3]
[330654981,1719693048509,-743.94,0.00013698,3]
[330654982,1719693048519,-3790.85,0.00013698,3]
[330654983,1719693048529,-2379.59,0.00013698,3]
[330654984,1719693048538,-976.36,0.00013698,3]
[330654985,1719693048548,-573.67,0.00013698,3]
[330654986,1719693048558,-500.0,0.00013698,3]
[330654987,1719693048568,-500.0,0.00013698,3]
[330654988,1719693048578,-500.0,0.00013698,3]
[330654990,1719693048587,-954.77,0.00013698,3]
[330654991,1719693048596,-500.0,0.00013698,3]
[330654992,1719693048606,-910.94,0.00013698,3]
[330654993,1719693048615,-1123.03,0.00013698,3]
[330654994,1719693048624,-2170.92,0.00013698,3]
[330654995,1719693048634,-501.38,0.00013698,3]
[330654996,1719693048643,-500.0,0.00013698,3]
[330654997,1719693048652,-500.0,0.00013698,3]
[330654998,1719693048661,-500.0,0.00013698,3]
[330654999,1719693048670,-299.81066904,0.00013698,3]
[330655000,1719693048679,-500.0,0.00013698,3]
[330655001,1719693048688,-1320.2,0.00013698,3]
[330655002,1719693048698,-500.0,0.00013698,3]
[330655003,1719693048707,-500.0,0.00013698,3]
[330655004,1719693048720,-504.07,0.00013698,3]
[330655005,1719693048730,-581.85,0.00013698,3]
[330655006,1719693048739,-500.0,0.00013698,3]
[330655007,1719693048748,-994.25,0.00013698,3]
[330655008,1719693048758,-500.0,0.00013698,3]
[330655009,1719693048769,-500.0,0.00013698,3]
[330655010,1719693048779,-500.0,0.00013698,3]
[330655011,1719693048788,-599.17,0.00013698,3]
[330655012,1719693048800,-1370.17,0.00013698,3]
[330655013,1719693048810,-500.0,0.00013698,3]
[330655014,1719693048819,-2773.97,0.00013698,3]
[330655015,1719693048828,-568.42,0.00013698,3]
[330655016,1719693048837,-1427.3,0.00013698,3]
[330655017,1719693048847,-1275.33,0.00013698,3]
[330655018,1719693048856,-2829.49,0.00013698,3]
[330655019,1719693048866,-500.0,0.00013698,3]
[330655020,1719693048876,-500.0,0.00013698,3]
[330655021,1719693048886,-467.55994672,0.00013698,3]
[330655022,1719693048896,-2106.26,0.00013698,3]
[330655023,1719693048906,-608.34,0.00013698,3]
[330655024,1719693048915,-500.0,0.00013698,3]
[330655025,1719693048924,-500.0,0.00013698,3]
[330655026,1719693048934,-1910.93,0.00013698,3]
[330655027,1719693048943,-585.61,0.00013698,3]
[330655028,1719693048952,-500.0,0.00013698,3]
[330655029,1719693048962,-500.0,0.00013698,3]
[330655030,1719693048971,-500.0,0.00013698,2]
[330655031,1719693048980,-500.0,0.00013698,2]
[330655032,1719693048989,-500.0,0.00013698,3]
[330655033,1719693048998,-412.68684223,0.00013698,3]
[330655034,1719693049008,-3045.71,0.00013698,3]
[330655035,1719693049018,-500.0,0.00013698,3]
[330655036,1719693049027,-500.0,0.00013698,3]
[330655037,1719693049037,-6152.89,0.00013698,3]
[330655038,1719693049046,-500.0,0.00013698,3]
[330655039,1719693049055,-2660.52,0.00013698,3]
[330655040,1719693049064,-794.91,0.00013698,3]
[330655041,1719693049074,-500.0,0.00013698,3]
[330655042,1719693049083,-1948.11,0.00013698,3]
[330655043,1719693049092,-1817.81,0.00013698,3]
[330655044,1719693049102,-520.35,0.00013698,3]
[330655045,1719693049112,-500.0,0.00013698,3]
[330655046,1719693049122,-635.18584241,0.00013698,3]
[330655047,1719693049131,-500.0,0.00013698,3]
[330655048,1719693049140,-618.97,0.00013698,3]
[330655049,1719693049150,-1130.9,0.00013698,3]
[330655050,1719693049159,-2255.65,0.00013698,3]
[330655051,1719693049168,-1777.8,0.00013698,3]
[330655052,1719693049178,-500.0,0.00013698,3]
[330655053,1719693049187,-1131.01,0.00013698,3]
[330655054,1719693049198,-2076.07,0.00013698,3]
[330655055,1719693049207,-1397.95,0.00013698,3]
[330655056,1719693049217,-2485.96,0.00013698,3]
[330655057,1719693049227,-725.13,0.00013698,3]
[330655058,1719693049236,-750.28,0.00013698,3]
[330655059,1719693049245,-577.22080602,0.00013698,3]
[330655060,1719693049256,-500.0,0.00013698,3]
[330655061,1719693049266,-500.0,0.00013698,3]
[330655062,1719693049275,-500.0,0.00013698,3]
[330655063,1719693049286,-630.14,0.00013698,3]
[330655064,1719693049296,-881.06,0.00013698,3]
[330655065,1719693049307,-500.0,0.00013698,3]
[330655066,1719693049316,-869.55,0.00013698,3]
[330655067,1719693049326,-1295.53,0.00013698,3]
[330655068,1719693049336,-606.93863631,0.00013698,3]
[330655069,1719693049346,-500.0,0.00013698,3]
[330655070,1719693049355,-975.59,0.00013698,3]
[330655071,1719693049364,-500.0,0.00013698,3]
[330655072,1719693049373,-250.07350581,0.00013698,3]
[330655073,1719693049383,-500.0,0.00013698,3]
[330655074,1719693049392,-500.0,0.00013698,3]
[330655075,1719693049402,-500.0,0.00013698,3]
[330655076,1719693049411,-1507.85,0.00013698,3]
[330655077,1719693049421,-597.38,0.00013698,3]
[330655078,1719693049430,-500.0,0.00013698,3]
[330655079,1719693049439,-500.0,0.00013698,3]
[330655080,1719693049449,-1301.55,0.00013698,3]
[330655081,1719693049460,-1952.32,0.00013698,3]
[330655082,1719693049470,-589.02,0.00013698,3]
[330655083,1719693049480,-1083.33,0.00013698,3]
[330655084,1719693049491,-1221.17,0.00013698,3]
[330655085,1719693049500,-1434.78,0.00013698,3]
[330655086,1719693049509,-500.0,0.00013698,3]
[330655087,1719693049519,-1029.59,0.00013698,3]
[330655088,1719693049528,-876.68,0.00013698,3]
[330655089,1719693049537,-1099.44,0.00013698,3]
[330655090,1719693049547,-500.0,0.00013698,3]
[330655091,1719693049557,-1759.93,0.00013698,3]
[330655092,1719693049566,-1936.66,0.00013698,3]
[330655093,1719693049576,-1046.03,0.00013698,3]
[330655094,1719693049587,-1121.12,0.00013698,3]
[330655095,1719693049596,-500.0,0.00013698,3]
[330655096,1719693049605,-379.54339704,0.00013698,3]
[330655097,1719693049616,-2288.97,0.00013698,3]
[330655098,1719693049627,-500.0,0.00013698,3]
[330655099,1719693049636,-500.0,0.00013698,3]
[330655100,1719693049648,-1959.85,0.00013698,3]
[330655101,1719693049658,-500.0,0.00013698,2]
[330655102,1719693049667,-503.76,0.00013698,3]
[330655103,1719693049677,-1304.71,0.00013698,3]
[330655104,1719693049686,-1047.1,0.00013698,3]
[330655105,1719693049696,-560.95,0.00013698,3]
[330655106,1719693049705,-2716.58,0.00013698,3]
[330655107,1719693049716,-876.09,0.00013698,3]
[330655108,1719693049727,-1993.86,0.00013698,3]
[330655109,1719693049737,-684.67,0.00013698,3]
[330655110,1719693049746,-500.0,0.00013698,3]
[330655111,1719693049755,-500.0,0.00013698,3]
[330655112,1719693049765,-500.0,0.00013698,3]
[330655113,1719693049774,-3902.11,0.00013698,3]
[330655114,1719693049783,-500.0,0.00013698,3]
[330655115,1719693049792,-151.998256,0.00013698,2]
[330655116,1719693049802,-775.77,0.00013698,3]
[330655117,1719693049811,-495.87757807,0.00013698,3]
[330655118,1719693049820,-589.39072104,0.00013698,3]
[330655119,1719693049830,-500.0,0.00013698,3]
[330655120,1719693049839,-684.86,0.00013698,3]
[330655121,1719693049848,-500.0,0.00013698,3]
[330655122,1719693049857,-500.0,0.00013698,3]
[330655123,1719693049869,-1731.4,0.00013698,3]
[330655124,1719693049879,-933.07,0.00013698,3]
[330655125,1719693049888,-4556.57,0.00013698,3]
[330655126,1719693049897,-1134.04,0.00013698,3]
[330655127,1719693049906,-1398.4,0.00013698,3]
[330655128,1719693049916,-500.0,0.00013698,3]
[330655129,1719693049925,-805.43,0.00013698,3]
[330655130,1719693049935,-3825.41,0.00013698,3]
[330655131,1719693049944,-530.96,0.00013698,3]
[330655132,1719693049953,-500.0,0.00013698,3]
[330655133,1719693049962,-3178.76,0.00013698,3]
[330655134,1719693049972,-500.0,0.00013698,3]
[330655135,1719693049981,-4190.64,0.00013698,3]
[330655136,1719693049990,-863.21,0.00013698,3]
[330655137,1719693050000,-1952.52,0.00013698,3]
[330655138,1719693050009,-500.66177449,0.00013698,3]
[330655139,1719693050018,-500.0,0.00013698,3]
[330655140,1719693050028,-874.37,0.00013698,3]
[330655141,1719693050037,-2056.69,0.00013698,3]
[330655142,1719693050047,-1113.06,0.00013698,3]
[330655143,1719693050056,-500.0,0.00013698,3]
[330655144,1719693050065,-984.14,0.00013698,3]
[330655145,1719693050074,-500.0,0.00013698,3]
[330655146,1719693050083,-500.0,0.00013698,3]
[330655147,1719693050092,-10370.27,0.00013698,3]
[330655148,1719693050101,-1626.55,0.00013698,3]
[330655149,1719693050110,-1124.88,0.00013698,3]
[330655150,1719693050121,-791.38,0.00013698,3]
[330655151,1719693050130,-1596.21,0.00013698,3]
[330655152,1719693050139,-500.0,0.00013698,3]
[330655153,1719693050148,-3766.12,0.00013698,3]
[330655154,1719693050158,-250.81604201,0.00013698,3]
[330655155,1719693050167,-1257.69,0.00013698,3]
[330655156,1719693050177,-897.97,0.00013698,3]
[330655157,1719693050186,-1045.65,0.00013698,3]
[330655158,1719693050195,-3398.6,0.00013698,3]
[330655159,1719693050204,-1013.15,0.00013698,3]
[330655160,1719693050214,-1698.62,0.00013698,3]
[330655161,1719693050223,-500.0,0.00013698,3]
[330655162,1719693050232,-500.0,0.00013698,3]
[330655163,1719693050241,-5959.22,0.00013698,3]
[330655164,1719693050251,-2162.31,0.00013698,3]
[330655165,1719693050260,-941.31,0.00013698,3]
[330655166,1719693050273,-824.91,0.00013698,3]
[330655167,1719693050283,-500.0,0.00013698,3]
[330655168,1719693050293,-2053.11,0.00013698,3]
[330655169,1719693050583,-500.0,0.00013698,3]
[330655170,1719693050593,-3030.36,0.00013698,3]
[330655171,1719693050602,-500.0,0.00013698,3]
[330655172,1719693050611,-22088.54,0.00013698,3]
[330655173,1719693050621,-500.0,0.00013698,3]
[330655174,1719693050631,-500.0,0.00013698,3]
[330655175,1719693050640,-1314.36,0.00013698,3]
[330655176,1719693050649,-500.0,0.00013698,3]
[330655177,1719693050661,-500.0,0.00013698,3]
[330655178,1719693050672,-419.13810928,0.00013698,3]
[330655179,1719693050681,-1029.87,0.00013698,3]
[330655180,1719693050690,-1184.21,0.00013698,3]
[330655181,1719693050700,-3923.16,0.00013698,3]
[330655182,1719693050709,-604.8,0.00013698,3]
[330655183,1719693050721,-1285.83,0.00013698,3]
[330655184,1719693050731,-1369.88,0.00013698,3]
[330655185,1719693050740,-500.0,0.00013698,3]
[330655186,1719693050749,-1850.75,0.00013698,3]
[330655187,1719693050758,-1665.34,0.00013698,3]
[330655188,1719693050770,-565.24,0.00013698,3]
[330655189,1719693050779,-500.0,0.00013698,3]
[330655190,1719693050788,-500.0,0.00013698,3]
[330655191,1719693050799,-500.0,0.00013698,3]
[330655192,1719693050808,-500.0,0.00013698,3]
[330655193,1719693050818,-2142.3,0.00013698,3]
[330655194,1719693050827,-1677.01,0.00013698,3]
[330655195,1719693050837,-500.0,0.00013698,3]
[330655196,1719693050846,-1355.87,0.00013698,3]
[330655197,1719693050855,-1765.3,0.00013698,3]
[330655198,1719693050868,-500.0,0.00013698,3]
[330655199,1719693050877,-500.0,0.00013698,3]
[330655200,1719693050886,-2814.02,0.00013698,3]
[330655201,1719693050895,-500.0,0.00013698,3]
[330655202,1719693050905,-500.0,0.00013698,3]
[330655203,1719693050915,-500.0,0.00013698,3]
[330655204,1719693050924,-1246.73,0.00013698,3]
[330655205,1719693050933,-593.63,0.00013698,3]
[330655206,1719693050942,-500.0,0.00013698,3]
[330655207,1719693050951,-500.0,0.00013698,3]
[330655208,1719693050961,-939.63,0.00013698,3]
[330655209,1719693050970,-826.63,0.00013698,3]
[330655210,1719693050980,-500.0,0.00013698,3]
[330655211,1719693050989,-500.0,0.00013698,3]
[330655212,1719693050998,-500.0,0.00013698,3]
[330655213,1719693051008,-1594.08,0.00013698,3]
[330655214,1719693051018,-1375.34,0.00013698,3]
[330655215,1719693051027,-996.78,0.00013698,3]
[330655216,1719693051036,-2358.57,0.00013698,3]
[330655217,1719693051047,-275.78837825,0.00013698,3]
[330655218,1719693051200,-99.16195047,0.00013698,3]
[330655219,1719693051226,-125.04967128,0.00013698,3]
[330655220,1719693051235,-491.40501553,0.00013698,3]
[330655221,1719693052096,-236.59498447,0.00013698,3]
[330655222,1719693052106,-500.0,0.00013698,3]
[330655223,1719693052116,-1164.88453122,0.00013698,3]
[330655224,1719693052142,-423.17404387,0.00013698,3]
[330655225,1719693052160,-182.89142491,0.00013698,3]
[330655226,1719693052170,-390.53871274,0.00013698,3]
[330655227,1719693052182,-109.46128726,0.00013698,3]
[330655228,1719693052191,-1289.26,0.00013698,3]
[330655229,1719693052201,-500.0,0.00013698,3]
[330655230,1719693052211,-1215.31,0.00013698,3]
[330655231,1719693052220,-1696.48,0.00013698,3]
[330655232,1719693052229,-4152.86,0.00013698,3]
[330655233,1719693052239,-1367.19,0.00013698,3]
[330655234,1719693052249,-500.0,0.00013698,3]
[330655235,1719693052258,-500.0,0.00013698,3]
[330655236,1719693052268,-155.12472383,0.00013698,3]
[330655237,1719693121420,500.0,0.00026,120]
[330655243,1719693159634,368.73,0.00010659,2]
[330655244,1719693165314,500.0,0.00026,120]
[330655257,1719693683918,264.47763332,0.00011098,2]
[330655259,1719693753973,-155.0,0.00011197,2]
[330655260,1719693753997,-250.0,0.00012069,2]
[330655261,1719693754022,-300.0,0.00012538,2]
[330655262,1719693754046,-300.0,0.00012538,2]
[330655263,1719693754070,-300.0,0.00012538,2]
[330655264,1719693754095,-8658.7776,0.00012539,2]
[330655265,1719693758068,-10000.0,0.00012539,2]
[330655266,1719693773558,-2732.6281,0.00012539,2]
[330655267,1719693774640,350.29,0.00010636,2]
[330655268,1719693843476,8341.25410495,0.00010636,2]
[330655269,1719693854570,290.46265469,0.00010636,2]
[330655270,1719693861378,647.77257455,0.00010636,2]
[330655271,1719693865818,1366.44919066,0.00010636,2]
[330655272,1719693873155,155.0,0.00010636,2]
[330655273,1719693888286,219.28826757,0.00010636,2]
[330655274,1719693890959,500.0,0.00026,120]
[330655275,1719693911452,500.0,0.00026,120]
[330655276,1719694040666,500.0,0.00026,120]
[330655277,1719694089929,264.17533828,0.00011098,2]
[330655278,1719694111003,500.0,0.00026,120]
[330655279,1719694117178,155.0,0.00011098,2]
[330655280,1719694121139,155.0,0.00011098,2]
[330655281,1719694172141,-523.39910507,0.00012302,2]
[330655282,1719694172164,-2313.73939493,0.00012449,2]
[330655299,1719694233329,-1247.36037009,0.00012302,2]
[330655300,1719694233339,-131.71060507,0.00012449,2]
[330655301,1719694233349,-1120.92902484,0.00012462,2]
[330655302,1719694233362,-1198.03097516,0.00012462,2]
[330655303,1719694233372,-250.0,0.00012469,2]
[330655304,1719694233383,-1000.0,0.00012495,2]
[330655305,1719694233392,-250.0,0.00012519,2]
[330655306,1719694233402,-150.0,0.00012521,2]
[330655307,1719694233412,-2488.5943,0.00012539,2]
[330655308,1719694233423,-171.94,0.00012543,2]
[330655309,1719694233433,-168.5,0.00012561,2]
[330655310,1719694233442,-499.99,0.00012561,2]
[330655311,1719694233452,-167.47,0.00012573,2]
[330655312,1719694233461,-1366.17899642,0.00012892,2]
[330655313,1719694233471,-350.29,0.000129,2]
[330655314,1719694233481,-700.0,0.000133,4]
[330655315,1719694233491,-1400.0,0.000134,4]
[330655316,1719694233500,-169.62862103,0.00013498,2]
[330655317,1719694233510,-9036.2442,0.00013498,2]
[330655318,1719694233519,-4529.4146,0.00013498,2]
[330655319,1719694233529,-2100.0,0.000135,4]
[330655320,1719694233539,-150.0,0.00013513,2]
[330655321,1719694233548,-227.02046916,0.00013516,2]
[330655322,1719694233558,-300.0,0.00013517,2]
[330655323,1719694233567,-150.0,0.00013517,2]
[330655324,1719694233577,-150.0,0.00013517,2]
[330655325,1719694233588,-354.62,0.00013517,2]
[330655326,1719694233598,-164.75,0.00013517,2]
[330655327,1719694233607,-423.92,0.00013517,2]
[330655328,1719694233618,-524.73,0.00013517,2]
[330655329,1719694233628,-150.0,0.00013518,2]
[330655330,1719694233637,-150.0,0.00013518,2]
[330655331,1719694233647,-150.0,0.00013522,2]
[330655332,1719694233656,-150.0,0.00013527,2]
[330655333,1719694233665,-150.0,0.00013527,2]
[330655334,1719694233675,-150.0,0.00013529,2]
[330655335,1719694233684,-150.0,0.00013532,2]
[330655336,1719694233694,-150.0,0.00013535,2]
[330655337,1719694233703,-150.0,0.00013535,2]
[330655338,1719694233712,-14795.19,0.00013539,2]
[330655339,1719694233721,-150.0,0.00013551,2]
[330655340,1719694233730,-150.0,0.00013555,2]
[330655341,1719694233740,-150.0,0.00013566,2]
[330655342,1719694233749,-150.0,0.00013567,2]
[330655343,1719694233758,-150.0,0.00013569,2]
[330655344,1719694233767,-150.0,0.00013577,2]
[330655345,1719694233776,-150.0,0.00013578,2]
[330655346,1719694233785,-150.0,0.00013579,2]
[330655347,1719694233795,-150.0,0.00013584,2]
[330655348,1719694233804,-150.0,0.00013585,2]
[330655349,1719694233814,-150.0,0.00013587,2]
[330655350,1719694233823,-13029.32376072,0.00013588,2]
[330655351,1719694233832,-220.18,0.00013589,3]
[330655352,1719694233842,-150.0,0.00013594,2]
[330655353,1719694233852,-150.0,0.00013595,2]
[330655354,1719694233861,-150.0,0.00013596,2]
[330655355,1719694233871,-3653.81412104,0.00013597,2]
[330655356,1719694233880,-164.39350903,0.00013598,2]
[330655357,1719694233890,-327.18357985,0.00013598,2]
[330655358,1719694233901,-245000.0,0.00013598,2]
[330655359,1719694233910,-500.0,0.00013598,2]
[330655360,1719694233920,-281.1116,0.00013598,2]
[330655361,1719694233929,-391.7049,0.00013598,2]
[330655362,1719694233939,-39380.1465,0.00013598,2]
[330655363,1719694233948,-1000.0,0.00013598,2]
[330655364,1719694233957,-5000.0,0.00013598,2]
[330655365,1719694233967,-4321.8883,0.00013598,2]
[330655366,1719694233977,-7500.0,0.00013598,2]
[330655367,1719694233987,-1000.0,0.000136,2]
[330655368,1719694233996,-2800.0,0.000136,4]
[330655369,1719694234006,-150.0,0.00013601,2]
[330655370,1719694234018,-150.0,0.00013606,2]
[330655371,1719694234032,-150.0,0.00013613,2]
[330655372,1719694234042,-150.0,0.00013627,2]
[330655373,1719694234053,-150.0,0.00013635,2]
[330655374,1719694234063,-150.0,0.00013635,2]
[330655375,1719694234075,-150.0,0.00013647,2]
[330655376,1719694234084,-150.0,0.00013647,2]
[330655377,1719694234094,-150.0,0.00013649,2]
[330655378,1719694234107,-150.0,0.00013651,2]
[330655379,1719694234117,-150.0,0.00013656,2]
[330655380,1719694234128,-150.0,0.00013657,2]
[330655381,1719694234138,-150.0,0.00013657,2]
[330655382,1719694234149,-150.0,0.0001366,2]
[330655383,1719694234158,-150.0,0.0001366,2]
[330655384,1719694234168,-150.0,0.00013665,2]
[330655385,1719694234178,-500.0,0.00013668,2]
[330655386,1719694234188,-500.0,0.00013669,2]
[330655387,1719694234198,-500.0,0.00013671,2]
[330655388,1719694234207,-500.0,0.00013672,2]
[330655389,1719694234217,-500.0,0.00013673,2]
[330655390,1719694234226,-150.0,0.00013674,2]
[330655391,1719694234236,-500.0,0.00013675,2]
[330655392,1719694234246,-500.0,0.00013676,2]
[330655393,1719694234256,-150.0,0.00013676,2]
[330655394,1719694234265,-150.0,0.00013681,2]
[330655395,1719694234275,-150.0,0.00013687,2]
[330655396,1719694234286,-150.0,0.00013687,2]
[330655397,1719694234295,-150.0,0.00013688,2]
[330655398,1719694234305,-166.49751087,0.00013688,2]
[330655399,1719694234314,-150.0,0.00013695,2]
[330655400,1719694234324,-675.0,0.00013698,2]
[330655401,1719694234333,-3661.26,0.00013698,3]
[330655402,1719694234343,-500.0,0.00013698,3]
[330655403,1719694234353,-2623.71,0.00013698,3]
[330655404,1719694234364,-4024.34,0.00013698,3]
[330655405,1719694234374,-2836.25,0.00013698,3]
[330655406,1719694234383,-4792.65,0.00013698,3]
[330655407,1719694234392,-9360.35,0.00013698,3]
[330655408,1719694234402,-10223.07,0.00013698,3]
[330655409,1719694234412,-2903.51,0.00013698,3]
[330655410,1719694234422,-500.0,0.00013698,3]
[330655411,1719694234432,-555.69,0.00013698,3]
[330655412,1719694234441,-500.0,0.00013698,3]
[330655413,1719694234450,-500.0,0.00013698,3]
[330655414,1719694234460,-704.78,0.00013698,3]
[330655415,1719694234470,-944.81,0.00013698,3]
[330655416,1719694234479,-500.0,0.00013698,3]
[330655417,1719694234489,-500.0,0.00013698,3]
[330655418,1719694234498,-789.29,0.00013698,3]
[330655419,1719694234508,-4005.87,0.00013698,3]
[330655420,1719694234518,-634.53,0.00013698,3]
[330655421,1719694234527,-244.9094816,0.00013698,3]
[330655422,1719694234536,-500.0,0.00013698,3]
[330655423,1719694234546,-500.0,0.00013698,3]
[330655424,1719694234556,-500.0,0.00013698,3]
[330655425,1719694234566,-517.3,0.00013698,3]
[330655426,1719694234575,-500.0,0.00013698,3]
[330655427,1719694234585,-501.66399485,0.00013698,3]
[330655428,1719694234595,-500.0,0.00013698,3]
[330655429,1719694234605,-1325.22,0.00013698,3]
[330655430,1719694234615,-500.0,0.00013698,3]
[330655431,1719694234624,-500.0,0.00013698,3]
[330655432,1719694234634,-500.0,0.00013698,3]
[330655433,1719694234643,-500.0,0.00013698,3]
[330655434,1719694234652,-587.03,0.00013698,3]
[330655435,1719694234662,-11736.97,0.00013698,3]
[330655436,1719694234672,-500.0,0.00013698,3]
[330655437,1719694234681,-500.0,0.00013698,3]
[330655438,1719694234691,-500.0,0.00013698,3]
[330655439,1719694234700,-500.0,0.00013698,3]
[330655440,1719694234710,-500.0,0.00013698,3]
[330655441,1719694234720,-624.09,0.00013698,3]
[330655442,1719694234729,-500.0,0.00013698,3]
[330655443,1719694234739,-500.0,0.00013698,3]
[330655444,1719694234749,-500.0,0.00013698,3]
[330655445,1719694234758,-335.19983294,0.00013698,3]
[330655446,1719694234768,-500.0,0.00013698,3]
[330655447,1719694234777,-500.0,0.00013698,3]
[330655448,1719694234787,-500.0,0.00013698,3]
[330655449,1719694234796,-534.07,0.00013698,3]
[330655450,1719694234805,-500.0,0.00013698,3]
[330655451,1719694234815,-549.74,0.00013698,3]
[330655452,1719694234824,-500.0,0.00013698,3]
[330655453,1719694234834,-500.0,0.00013698,3]
[330655454,1719694234843,-1414.01,0.00013698,3]
[330655455,1719694234853,-500.0,0.00013698,3]
[330655456,1719694234862,-1859.77,0.00013698,3]
[330655457,1719694234872,-500.0,0.00013698,3]
[330655458,1719694234882,-500.0,0.00013698,3]
[330655459,1719694234896,-529.64,0.00013698,3]
[330655460,1719694234906,-910.27,0.00013698,3]
[330655461,1719694234916,-500.0,0.00013698,3]
[330655462,1719694234925,-500.0,0.00013698,3]
[330655463,1719694234935,-500.0,0.00013698,3]
[330655464,1719694234944,-620.55,0.00013698,3]
[330655465,1719694234955,-846.18,0.00013698,3]
[330655466,1719694234964,-1444.12,0.00013698,3]
[330655467,1719694234974,-500.0,0.00013698,3]
[330655468,1719694234984,-500.0,0.00013698,3]
[330655469,1719694234994,-718.38,0.00013698,3]
[330655470,1719694235004,-1130.19,0.00013698,3]
[330655471,1719694235014,-3088.27,0.00013698,3]
[330655472,1719694235024,-500.0,0.00013698,3]
[330655473,1719694235034,-585.37,0.00013698,3]
[330655474,1719694235045,-533.67,0.00013698,3]
[330655475,1719694235054,-1039.95,0.00013698,3]
[330655476,1719694235063,-500.0,0.00013698,3]